bitfinex/quotes_ETHUSD_20250213
["timestamp","ask_amount","ask_price","bid_price","bid_amount"]
[1739426744071,0.1093229,2718.8,2718.7,4.77321351]
[1739426745019,0.1018229,2718.8,2718.7,9.15588518]
[1739426745222,0.1018229,2718.8,2718.7,9.11910553]
[1739426745423,0.015,2719.3,2719.0,2.0]
[1739426745569,3.69241,2719.3,2719.0,2.0]
[1739426745769,0.015,2719.1,2719.0,2.0]
[1739426746421,0.55,2719.1,2719.0,2.0]
[1739426746570,4.24268,2719.1,2719.0,2.34269351]
[1739426747319,5.034689,2719.1,2719.0,2.34269351]
[1739426747530,5.034689,2719.1,2719.0,0.34269351]
[1739426747830,5.034689,2719.1,2719.0,2.34269351]
[1739426748059,5.034689,2719.1,2719.0,2.0]
[1739426749074,1.357009,2719.1,2719.0,2.0]
[1739426749883,0.565,2719.1,2719.0,2.0]
[1739426750917,0.565,2719.1,2719.0,2.34269351]
[1739426754935,0.66176454,2719.1,2719.0,2.34269351]
[1739426756089,4.33944454,2719.1,2719.0,2.34269351]
[1739426756634,0.66176454,2719.1,2719.0,2.34269351]
[1739426758042,4.33944454,2719.1,2719.0,2.34269351]
[1739426758941,9.62944454,2719.1,2719.0,2.34269351]
[1739426759373,10.93986195,2719.1,2719.0,2.34269351]
[1739426759535,11.01676195,2719.1,2719.0,2.34269351]
[1739426760788,10.93986195,2719.1,2719.0,0.34269351]
[1739426760955,11.01676195,2719.1,2719.0,0.34269351]
[1739426761158,4.24309,2718.8,2718.7,0.34269351]
[1739426761337,8.51761459,2718.8,2718.7,0.34269351]
[1739426761537,8.61430255,2718.8,2718.7,0.34269351]
[1739426762644,4.24322,2718.7,2718.6,0.00735672]
[1739426762976,4.33977482,2718.7,2718.6,0.00735672]
[1739426763476,4.41667482,2718.7,2718.6,0.00735672]
[1739426763691,5.65360376,2718.7,2718.6,0.00735672]
[1739426764839,10.94360376,2718.7,2718.6,0.00735672]
[1739426768479,11.13187611,2718.7,2718.6,0.00735672]
[1739426769042,11.05497611,2718.7,2718.6,0.00735672]
[1739426769556,11.13187611,2718.7,2718.6,0.00735672]
[1739426770766,7.45365611,2718.7,2718.6,0.00735672]
[1739426770973,11.05497611,2718.7,2718.6,0.00735672]
[1739426780397,11.13187611,2718.7,2718.6,0.00735672]
[1739426780999,0.015,2718.2,2718.1,0.30050135]
[1739426781392,0.09440709,2718.2,2718.1,7.95356249]
[1739426781588,5.305,2718.4,2718.3,2.0]
[1739426781992,5.305,2718.4,2718.3,2.7785]
[1739426783671,0.55,2718.3,2718.0,2.7863]
[1739426783877,0.015,2718.2,2718.0,2.7863]
[1739426784573,0.565,2718.1,2718.0,2.0]
[1739426784917,4.24404,2718.1,2718.0,2.0]
[1739426785118,0.565,2717.9,2717.8,2.7863]
[1739426785687,0.65609179,2717.9,2717.8,2.7863]
[1739426787332,4.33540179,2717.9,2717.8,2.0]
[1739426787631,7.81013138,2717.9,2717.8,2.0]
[1739426788494,0.015,2717.6,2717.5,2.8297]
[1739426788839,0.65251467,2717.6,2717.5,2.8297]
[1739426788987,0.65251467,2717.6,2717.5,2.0]
[1739426790801,0.015,2717.4,2717.3,0.8153]
[1739426791361,0.565,2717.3,2717.2,2.0]
[1739426791650,0.65239027,2717.3,2717.2,2.0]
[1739426793639,0.65239027,2717.3,2717.2,2.3435799]
[1739426794828,0.65239027,2717.3,2717.2,2.0]
[1739426795056,9.13746889,2717.3,2717.2,2.0]
[1739426795358,0.015,2716.9,2716.6,0.7847]
[1739426795563,0.015,2716.7,2716.6,0.7847]
[1739426796499,0.015,2716.7,2716.6,4.46577]
[1739426796698,0.08636034,2716.7,2716.6,4.46577]
[1739426796951,6.04140632,2716.9,2716.8,2.0]
[1739426797313,6.12427015,2716.9,2716.8,2.0]
[1739426797718,6.12427015,2716.9,2716.8,6.4655]
[1739426797719,5.38786383,2716.9,2716.8,6.4655]
[1739426798061,5.37286383,2716.9,2716.8,10.480142]
[1739426799039,5.37286383,2716.9,2716.8,9.4655]
[1739426799245,5.29,2716.9,2716.8,9.4655]
[1739426799441,5.36998894,2716.9,2716.8,5.7847]
[1739426799629,5.38498894,2716.9,2716.8,3.7847]
[1739426800125,6.40817112,2716.9,2716.8,3.0]
[1739426800685,0.55,2716.8,2716.7,2.0]
[1739426801040,0.63000681,2716.8,2716.7,2.0]
[1739426801244,3.69598,2716.7,2716.5,0.8134]
[1739426801447,0.015,2716.7,2716.5,0.8134]
[1739426801621,0.07992383,2716.6,2716.5,0.8134]
[1739426802117,0.62992383,2716.6,2716.5,0.8134]
[1739426804217,0.565,2716.5,2716.4,5.0]
[1739426804454,4.2462,2716.5,2716.4,5.0]
[1739426804654,0.64473024,2716.5,2716.4,5.0]
[1739426805954,0.09473024,2716.5,2716.4,5.0]
[1739426806271,0.07973024,2716.5,2716.4,5.0]
[1739426806467,0.07973024,2716.5,2716.4,5.7598]
[1739426806672,0.015,2716.8,2716.4,5.7598]
[1739426806673,0.565,2716.8,2716.7,2.0]
[1739426807385,4.2458,2716.8,2716.7,2.0]
[1739426808239,5.567447,2716.8,2716.7,2.0]
[1739426810557,0.565,2716.8,2716.7,2.0]
[1739426810762,0.565,2716.8,2716.7,2.7937]
[1739426811246,0.015,2716.8,2716.7,2.7937]
[1739426811647,5.29,2716.9,2716.7,2.7937]
[1739426811849,5.29,2716.9,2716.8,3.0]
[1739426812064,5.305,2716.9,2716.8,3.0]
[1739426812784,5.305,2716.9,2716.8,6.6808]
[1739426812987,5.305,2716.9,2716.8,7.4745]
[1739426812988,5.29,2716.9,2716.8,7.4745]
[1739426813222,8.96986,2717.5,2717.2,2.0]
[1739426813494,0.565,2717.3,2717.2,2.0]
[1739426813791,5.29,2717.5,2717.2,6.47394]
[1739426813975,5.29,2717.5,2717.2,2.7937]
[1739426814503,0.015,2717.4,2717.2,2.7937]
[1739426814808,0.015,2717.4,2717.3,3.68012]
[1739426815105,0.08967193,2717.4,2717.3,3.68012]
[1739426815260,0.015,2717.4,2717.3,3.68012]
[1739426815458,0.07467193,2717.4,2717.3,3.68012]
[1739426815663,0.55,2717.7,2717.6,2.0]
[1739426815859,9.64035261,2717.7,2717.6,2.0]
[1739426816074,9.64035261,2717.7,2717.3,2.0]
[1739426816279,3.69506,2717.4,2717.1,2.0]
[1739426816461,3.69506,2717.4,2717.3,2.0]
[1739426816657,0.015,2717.4,2717.0,0.7519]
[1739426816860,4.24512,2717.3,2717.2,2.0]
[1739426817149,0.565,2717.0,2716.9,2.0]
[1739426819847,0.015,2717.0,2716.9,2.0]
[1739426822872,0.19719672,2717.0,2716.9,2.0]
[1739426827291,0.74719672,2717.0,2716.9,2.0]
[1739426829174,4.94738239,2717.0,2716.9,2.0]
[1739426829426,3.69593,2716.7,2716.6,2.0]
[1739426829644,12.46065959,2716.7,2716.6,2.0]
[1739426829977,12.53276849,2716.7,2716.6,2.0]
[1739426830380,12.60966849,2716.7,2716.6,2.0]
[1739426830581,14.29371634,2716.7,2716.6,2.0]
[1739426831241,14.84371634,2716.7,2716.6,2.0]
[1739426832228,11.36898675,2716.7,2716.6,2.0]
[1739426832631,7.61115675,2716.7,2716.6,2.0]
[1739426833034,5.3771089,2716.7,2716.6,2.0]
[1739426833240,0.0871089,2716.7,2716.6,2.0]
[1739426833784,0.0871089,2716.7,2716.6,5.68107]
[1739426834214,0.0871089,2716.7,2716.6,2.8187]
[1739426834481,0.0871089,2716.7,2716.6,6.49977]
[1739426834939,0.0721089,2716.7,2716.6,6.49977]
[1739426835141,0.0721089,2716.7,2716.6,10.517867]
[1739426835343,5.29,2717.3,2717.1,2.8258]
[1739426835505,12.64988,2717.5,2717.1,2.8258]
[1739426835704,0.015,2717.3,2717.1,2.8258]
[1739426836411,0.565,2717.4,2717.1,2.8258]
[1739426837287,4.24503,2717.4,2717.1,2.8258]
[1739426837491,4.23003,2717.4,2717.1,2.0]
[1739426837792,0.015,2717.3,2717.1,2.0]
[1739426838289,0.968503,2717.3,2717.1,2.0]
[1739426838516,0.968503,2717.3,2716.9,3.7639]
[1739426838517,0.015,2717.1,2716.9,2.7639]
[1739426838737,0.015,2717.1,2716.9,2.0]
[1739426839398,0.565,2717.0,2716.9,2.0]
[1739426839731,0.015,2716.9,2716.7,2.8126]
[1739426839891,0.015,2716.9,2716.8,3.0]
[1739426840346,0.43954,2716.9,2716.8,3.0]
[1739426840691,0.43954,2716.9,2716.7,2.0]
[1739426840893,0.015,2716.9,2716.7,2.0]
[1739426841224,0.015,2716.9,2716.7,8.6808]
[1739426841544,0.015,2716.9,2716.8,3.7949]
[1739426842515,0.015,2716.9,2716.8,7.4757]
[1739426842719,0.015,2716.9,2716.8,3.7949]
[1739426843102,0.015,2716.9,2716.8,3.0]
[1739426843304,0.015,2716.9,2716.8,5.0]
[1739426845250,4.1202,2716.9,2716.8,3.0]
[1739426845454,0.51174679,2716.9,2716.8,3.0]
[1739426845598,0.08720679,2716.9,2716.8,3.0]
[1739426846220,3.76786679,2716.9,2716.8,3.0]
[1739426846979,0.08720679,2716.9,2716.8,3.0]
[1739426848180,0.565,2716.7,2716.4,2.0]
[1739426848325,0.55,2716.5,2716.4,2.0]
[1739426848664,5.65929595,2716.5,2716.4,2.0]
[1739426849226,1.97809595,2716.5,2716.0,0.7677]
[1739426849426,1.97809595,2716.5,2716.1,3.0]
[1739426849427,0.015,2716.2,2716.1,3.0]
[1739426849773,0.565,2716.2,2716.1,3.0]
[1739426850178,0.636838,2716.2,2716.1,3.0]
[1739426853737,0.015,2716.0,2715.9,2.0]
[1739426854179,0.63515569,2716.0,2715.9,2.0]
[1739426855940,0.08515569,2716.0,2715.9,5.68202]
[1739426856287,0.08515569,2716.0,2715.9,2.0]
[1739426857292,0.08515569,2716.0,2715.5,2.0]
[1739426857293,3.68242,2715.6,2715.5,2.0]
[1739426857490,0.015,2715.5,2715.2,2.0]
[1739426857801,3.69783,2715.3,2715.0,2.7758]
[1739426857966,0.015,2715.1,2715.0,2.7758]
[1739426858350,0.08430055,2715.1,2715.0,2.7758]
[1739426860389,0.08430055,2715.1,2715.0,2.0]
[1739426860390,0.71120055,2715.1,2715.0,2.0]
[1739426862257,1.51891261,2715.1,2715.0,2.0]
[1739426862986,0.63430055,2715.1,2715.0,2.0]
[1739426864674,0.08430055,2715.1,2715.0,2.0]
[1739426864995,0.08430055,2715.1,2715.0,6.46074]
[1739426866268,0.63430055,2715.1,2715.0,2.0]
[1739426866476,1.0660276,2715.1,2715.0,2.0]
[1739426866882,0.63430055,2715.1,2715.0,2.0]
[1739426867067,0.08430055,2715.1,2715.0,2.0]
[1739426867454,0.08430055,2715.1,2715.0,5.68324]
[1739426868283,0.06930055,2715.1,2715.0,9.48674]
[1739426868496,0.06930055,2715.1,2715.0,11.16596613]
[1739426868696,3.68209,2715.9,2715.7,2.0]
[1739426869099,0.06888175,2715.8,2715.7,2.0]
[1739426869471,3.69731,2715.7,2715.6,2.0]
[1739426869781,0.88366841,2715.7,2715.6,2.0]
[1739426870399,3.76613023,2715.7,2715.6,2.0]
[1739426871013,0.08384023,2715.7,2715.6,2.0]
[1739426871388,0.08384023,2715.7,2715.6,5.68242]
[1739426872025,0.06884023,2715.7,2715.6,8.68242]
[1739426872186,0.565,2716.3,2715.9,2.0]
[1739426872395,0.015,2716.1,2715.9,2.0]
[1739426872577,0.61925978,2716.0,2715.9,2.0]
[1739426879011,4.30113978,2716.0,2715.9,2.0]
[1739426879852,4.37803978,2716.0,2715.9,2.0]
[1739426880616,4.24713,2715.9,2715.6,2.0]
[1739426880914,0.015,2715.7,2715.6,2.0]
[1739426881297,0.0841987,2715.7,2715.6,2.0]
[1739426881497,0.015,2715.7,2715.6,2.0]
[1739426881736,0.0841987,2715.7,2715.6,2.0]
[1739426882241,0.0841987,2715.7,2715.6,5.68242]
[1739426882401,0.0691987,2715.7,2715.6,7.429608]
[1739426882601,0.015,2715.8,2715.7,5.6822]
[1739426882850,0.06917675,2715.8,2715.7,8.7190211]
[1739426883003,3.68121,2716.5,2716.1,2.0]
[1739426883197,0.06742642,2716.4,2716.1,2.8107]
[1739426883393,0.565,2716.3,2716.1,2.8107]
[1739426883657,0.08240688,2716.2,2716.1,2.8107]
[1739426884447,0.08240688,2716.2,2716.1,6.49244]
[1739426884861,0.08240688,2716.2,2716.1,2.8107]
[1739426885057,0.51378157,2716.2,2716.1,2.0]
[1739426885326,4.19539157,2716.2,2716.1,2.0]
[1739426885461,4.24691,2716.0,2715.9,2.0]
[1739426885662,7.86340798,2716.0,2715.9,2.0]
[1739426886128,0.62986839,2716.0,2715.9,2.0]
[1739426887074,0.07986839,2716.0,2715.9,5.68202]
[1739426887423,0.06486839,2716.0,2715.9,5.68202]
[1739426888111,0.06486839,2716.0,2715.9,2.0]
[1739426889003,0.06486839,2716.0,2715.9,5.68202]
[1739426890289,0.06486839,2716.0,2715.9,8.68202]
[1739426890624,0.06486839,2716.0,2715.9,11.109828]
[1739426890829,7.15546959,2716.9,2716.5,2.0]
[1739426890976,4.31159536,2716.8,2716.5,2.0]
[1739426891173,4.23107,2716.6,2716.5,2.0]
[1739426891435,0.015,2716.3,2716.2,2.0]
[1739426891636,0.08056789,2716.3,2716.2,2.0]
[1739426891947,4.31203789,2716.3,2716.2,2.0]
[1739426892143,7.78676748,2716.3,2716.2,2.0]
[1739426892847,4.10529748,2716.3,2716.2,2.0]
[1739426893049,0.63056789,2716.3,2716.2,2.0]
[1739426893467,0.565,2715.9,2715.0,0.7505]
[1739426893668,0.565,2715.4,2715.0,0.7505]
[1739426893967,7.15729959,2715.5,2715.0,2.0]
[1739426893968,0.06516766,2715.3,2715.0,2.0]
[1739426894342,0.565,2715.4,2715.1,3.0]
[1739426894541,0.015,2715.1,2715.0,8.68324]
[1739426895071,0.07993528,2715.1,2715.0,8.68324]
[1739426895429,0.07993528,2715.1,2715.0,5.0]
[1739426895872,0.07993528,2715.1,2715.0,8.68324]
[1739426896403,0.07993528,2715.1,2715.0,5.0]
[1739426897475,0.07993528,2715.1,2715.0,8.68324]
[1739426897773,0.07993528,2715.1,2715.0,5.0]
[1739426898148,0.565,2715.1,2715.0,2.0]
[1739426898348,0.62955449,2715.1,2715.0,2.0]
[1739426899137,4.38955449,2715.1,2715.0,2.0]
[1739426899354,4.82081094,2715.1,2715.0,2.0]
[1739426899739,1.13771094,2715.1,2715.0,2.0]
[1739426899939,0.70645449,2715.1,2715.0,2.0]
[1739426900188,4.38955449,2715.1,2715.0,2.0]
[1739426900484,0.70645449,2715.1,2715.0,2.0]
[1739426901140,0.62955449,2715.1,2715.0,2.0]
[1739426902751,0.07955449,2715.1,2715.0,2.8293]
[1739426902947,0.07955449,2715.1,2715.0,6.51254]
[1739426903260,0.015,2715.1,2715.0,2.0]
[1739426903462,0.07693601,2715.1,2715.0,2.0]
[1739426904069,0.07693601,2715.1,2715.0,5.68324]
[1739426904286,0.07693601,2715.1,2715.0,2.0]
[1739426906897,0.07693601,2715.1,2714.9,0.1475417]
[1739426907048,0.07693601,2715.1,2714.9,1.7e-06]
[1739426907049,4.32514,2715.0,2714.9,1.7e-06]
[1739426907249,3.69946,2714.1,2714.0,2.0]
[1739426907477,0.62644576,2714.1,2714.0,2.0]
[1739426907690,0.06144576,2714.1,2714.0,5.68459]
[1739426907893,0.18530856,2714.5,2714.0,5.68459]
[1739426908108,0.05937928,2714.4,2714.3,2.0]
[1739426908394,0.05937928,2714.4,2714.0,3.68451]
[1739426908687,0.565,2714.2,2714.1,3.68445]
[1739426908884,0.62380941,2714.2,2714.0,3.68451]
[1739426909251,0.62380941,2714.2,2713.9,5.0]
[1739426909660,0.62380941,2714.2,2713.9,8.68472]
[1739426909875,0.07380941,2714.2,2714.1,3.68446]
[1739426910681,0.015,2714.5,2714.2,2.0]
[1739426910905,0.015,2714.3,2714.2,2.0]
[1739426911266,0.07375357,2714.3,2714.2,2.0]
[1739426911907,0.05875357,2714.3,2714.2,9.45252]
[1739426912089,0.05875357,2714.3,2714.2,10.766218]
[1739426912288,0.565,2714.8,2714.6,2.0]
[1739426912502,0.60893478,2714.7,2714.6,2.0]
[1739426912703,0.015,2714.6,2714.2,3.7682]
[1739426912906,0.565,2714.6,2714.3,2.0]
[1739426913165,0.55,2714.4,2714.3,2.0]
[1739426913514,0.62381012,2714.4,2714.3,2.0]
[1739426914193,0.62381012,2714.4,2714.3,8.68419]
[1739426914599,0.62381012,2714.4,2714.3,9.48869]
[1739426914909,0.62381012,2714.4,2714.3,5.8045]
[1739426915110,0.62381012,2714.4,2714.3,5.0]
[1739426919925,4.30786012,2714.4,2714.0,2.8045]
[1739426920103,0.015,2714.3,2714.0,2.0]
[1739426920305,0.55,2714.1,2714.0,2.0]
[1739426920672,0.60882776,2714.1,2714.0,2.0]
[1739426924411,0.07382776,2714.1,2714.0,2.0]
[1739426930105,0.07382776,2714.1,2714.0,5.68459]
[1739426930784,0.07382776,2714.1,2714.0,2.0]
[1739426931277,0.07382776,2714.1,2714.0,5.68459]
[1739426931482,0.05882776,2714.1,2714.0,10.738514]
[1739426931817,5.855,2714.4,2714.3,5.68419]
[1739426932020,5.29,2715.1,2714.6,5.6837]
[1739426932318,0.565,2714.9,2714.6,2.0]
[1739426932934,0.015,2714.9,2714.6,2.0]
[1739426933088,0.392522,2714.9,2714.6,2.0]
[1739426933288,0.392522,2714.9,2714.3,3.0]
[1739426933289,0.015,2714.7,2714.3,2.0]
[1739426933510,0.55,2714.6,2714.3,2.0]
[1739426933798,0.55,2714.6,2714.3,5.0]
[1739426934790,0.0568673,2714.5,2714.3,5.0]
[1739426934990,0.015,2714.4,2714.3,5.0]
[1739426935343,0.07182574,2714.4,2714.3,5.0]
[1739426935988,0.07182574,2714.4,2714.3,6.68419]
[1739426936515,0.05682574,2714.4,2714.3,6.68419]
[1739426936714,0.05682574,2714.4,2714.3,9.802728]
[1739426936904,0.015,2714.7,2714.5,3.68383]
[1739426937235,0.07190885,2714.6,2714.5,3.68383]
[1739426937554,0.07190885,2714.6,2714.5,4.48523]
[1739426937758,0.07190885,2714.6,2714.5,7.48523]
[1739426940501,0.07190885,2714.6,2714.5,3.0]
[1739426941097,0.07190885,2714.6,2714.5,6.68391]
[1739426941357,0.07190885,2714.6,2714.5,3.0]
[1739426941851,0.62190885,2714.6,2714.5,3.0]
[1739426942061,0.07190885,2714.6,2714.5,3.0]
[1739426942353,0.07190885,2714.6,2714.5,6.68391]
[1739426942514,0.07190885,2714.6,2714.5,3.0]
[1739426942725,0.07190885,2714.6,2713.8,4.4086206]
[1739426942726,3.68459,2714.0,2713.6,2.0]
[1739426943036,0.44801457,2713.9,2713.6,2.0]
[1739426943198,0.44801457,2713.9,2712.7,3.68623]
[1739426943199,0.6419,2713.7,2713.0,2.0]
[1739426943399,0.015,2713.1,2713.0,2.0]
[1739426943641,0.565,2713.1,2713.0,2.0]
[1739426943810,0.62137151,2713.1,2713.0,2.0]
[1739426944198,3.68619,2712.9,2712.7,2.0]
[1739426944406,0.05608177,2712.8,2712.7,2.0]
[1739426944598,0.015,2712.8,2712.7,2.0]
[1739426944800,0.05608177,2712.8,2712.7,2.5]
[1739426945012,0.0769,2713.8,2713.1,2.0]
[1739426945301,0.05606853,2713.7,2713.3,3.7558]
[1739426945500,3.76136,2714.1,2713.5,5.68527]
[1739426945842,0.05607779,2714.0,2713.6,3.6851]
[1739426946146,0.015,2713.9,2713.8,3.0]
[1739426946320,0.07103621,2713.9,2713.8,3.0]
[1739426946643,0.05603621,2713.9,2713.7,3.0]
[1739426946843,0.0075,2713.8,2713.7,3.0]
[1739426947028,0.05603621,2713.9,2713.8,2.0]
[1739426947342,0.565,2714.1,2713.8,2.0]
[1739426947647,0.015,2714.1,2713.8,2.0]
[1739426948261,0.565,2714.4,2713.8,5.68485]
[1739426948414,4.625138,2714.4,2713.8,5.68485]
[1739426948620,0.015,2714.1,2713.8,2.0]
[1739426949221,0.015,2714.1,2713.5,5.68521]
[1739426949657,0.015,2714.1,2713.7,2.0]
[1739426949658,0.015,2713.9,2713.7,2.0]
[1739426949962,0.05474984,2713.8,2713.5,3.68521]
[1739426950254,0.06974984,2713.8,2713.7,2.0]
[1739426951219,0.565,2713.7,2713.5,2.0]
[1739426951418,0.06966668,2713.6,2713.5,2.0]
[1739426951834,0.015,2713.6,2713.5,2.0]
[1739426952230,0.05466668,2713.6,2713.5,2.0]
[1739426952457,3.76168,2713.9,2713.5,2.0]
[1739426952648,0.05474984,2713.8,2713.5,2.0]
[1739426954464,4.25,2713.7,2713.5,2.0]
[1739426954833,0.61966668,2713.6,2713.5,2.0]
[1739426955634,4.30480668,2713.6,2713.5,2.0]
[1739426956475,4.25033,2713.5,2713.3,0.7558]
[1739426956773,3.68595,2713.0,2712.5,2.0]
[1739426956973,5.42148351,2713.4,2712.7,3.0]
[1739426957145,0.05421409,2712.9,2712.8,2.0]
[1739426957467,0.0075,2712.8,2712.7,3.0]
[1739426957770,0.05417248,2712.8,2712.7,6.68634]
[1739426957943,3.68571,2713.2,2712.7,3.68635]
[1739426958152,0.565,2713.3,2712.9,2.0]
[1739426959108,0.565,2713.3,2712.9,2.8064]
[1739426959292,0.565,2713.1,2712.9,2.0]
[1739426960006,3.68582,2713.1,2712.6,3.68638]
[1739426960363,0.565,2713.0,2712.6,3.0]
[1739426961537,0.565,2713.0,2712.6,6.68647]
[1739426961737,4.25108,2713.0,2712.6,3.0]
[1739426961928,0.565,2713.0,2712.6,6.68647]
[1739426962310,3.68561,2713.3,2712.6,7.923736]
[1739426962511,0.0769,2713.4,2713.0,3.68592]
[1739426962757,3.68534,2713.5,2712.9,8.68608]
[1739426962961,0.565,2713.5,2713.1,3.68581]
[1739426963436,0.015,2713.5,2713.1,3.68581]
[1739426963783,0.565,2713.5,2712.9,2.0]
[1739426964086,3.47472959,2714.1,2713.3,3.0]
[1739426964087,3.6846,2714.0,2713.3,3.0]
[1739426964373,0.565,2713.9,2713.3,3.0]
[1739426964572,0.015,2713.9,2713.5,2.0]
[1739426964784,0.015,2713.7,2713.5,2.0]
[1739426964915,0.015,2713.7,2713.5,2.7749]
[1739426965120,0.05238427,2713.6,2713.5,9.46005]
[1739426965348,0.015,2713.7,2713.5,11.074595]
[1739426966023,0.05245563,2713.6,2713.5,11.074595]
[1739426966368,0.05245563,2713.6,2713.5,9.46005]
[1739426966695,0.61745563,2713.6,2713.5,3.0]
[1739426967896,0.565,2713.5,2713.3,3.0]
[1739426968062,0.565,2713.5,2713.3,6.68546]
[1739426968395,0.05989877,2713.4,2713.3,6.68546]
[1739426968777,0.05239877,2713.4,2713.3,6.68546]
[1739426969092,0.05239877,2713.4,2713.3,7.998055]
[1739426969299,3.76152,2714.0,2713.5,2.0]
[1739426969300,0.565,2713.8,2713.5,2.0]
[1739426970080,0.015,2713.2,2712.6,3.68647]
[1739426970420,4.2508,2713.2,2712.7,3.68635]
[1739426970593,5.02324296,2713.2,2712.7,3.0]
[1739426970801,0.015,2712.9,2712.7,3.0]
[1739426971307,0.015,2712.9,2712.7,6.68626]
[1739426971506,0.015,2713.1,2712.7,6.68626]
[1739426971867,0.015,2713.1,2712.7,3.0]
[1739426972074,0.015,2713.1,2712.7,6.68628]
[1739426972408,0.015,2713.1,2712.9,3.0]
[1739426973170,0.55,2713.2,2712.9,3.0]
[1739426973171,0.565,2713.2,2712.9,3.0]
[1739426973810,0.565,2713.2,2712.8,3.0]
[1739426974113,4.25069,2713.2,2712.8,3.0]
[1739426975719,4.683449,2713.2,2712.8,3.0]
[1739426975925,4.683449,2713.2,2712.7,3.68634]
[1739426977149,8.369219,2713.2,2712.7,3.68634]
[1739426977437,8.369219,2713.2,2712.6,2.0]
[1739426977637,0.015,2712.9,2712.6,8.68648]
[1739426977848,0.0075,2713.0,2712.6,8.68648]
[1739426978025,0.0075,2713.0,2712.6,5.0]
[1739426978329,0.0075,2713.0,2712.7,3.68632]
[1739426978559,0.0075,2713.0,2712.7,7.37264]
[1739426978859,0.565,2713.2,2712.7,3.68632]
[1739426979340,4.25073,2713.2,2712.7,3.68632]
[1739426979701,0.565,2713.2,2712.7,3.68632]
[1739426979907,0.05153014,2713.1,2712.7,3.68632]
[1739426980104,0.05153014,2713.1,2712.8,3.68621]
[1739426980494,0.0075,2713.0,2712.9,3.68609]
[1739426980699,0.05896514,2713.0,2712.9,5.68609]
[1739426981156,0.05896514,2713.0,2712.9,9.47299]
[1739426982332,0.05146514,2713.0,2712.9,9.47299]
[1739426982663,0.015,2713.9,2713.5,5.0]
[1739426983071,0.015,2713.7,2713.5,5.0]
[1739426983268,0.565,2713.7,2713.5,5.0]
[1739426983470,0.06476599,2713.6,2713.5,5.0]
[1739426984964,0.06476599,2713.6,2713.5,2.0]
[1739426985332,0.06476599,2713.6,2713.5,5.0]
[1739426987678,0.06476599,2713.6,2713.5,8.68527]
[1739426987989,0.06476599,2713.6,2713.5,5.0]
[1739426988776,0.06476599,2713.6,2713.5,8.68527]
[1739426990339,0.06476599,2713.6,2713.5,5.0]
[1739426991183,0.06476599,2713.6,2713.5,8.68527]
[1739426991786,0.06476599,2713.6,2713.5,5.0]
[1739426992325,0.06476599,2713.6,2713.5,8.68527]
[1739426993299,0.04976599,2713.6,2713.5,8.68527]
[1739426993648,0.015,2713.9,2713.6,3.68511]
[1739426994042,0.015,2713.7,2713.6,3.68511]
[1739426994475,0.06342673,2713.7,2713.6,3.68511]
[1739426996282,0.015,2713.7,2713.6,3.68511]
[1739426996483,0.06346802,2713.7,2713.6,3.68511]
[1739426998549,0.06346802,2713.7,2713.6,3.62311]
[1739427000245,0.015,2713.7,2713.6,3.62311]
[1739427000848,0.0769,2714.3,2713.9,2.0]
[1739427001050,0.565,2714.2,2713.9,2.0]
[1739427001248,0.565,2713.8,2713.5,2.794]
[1739427001481,0.015,2713.7,2713.5,2.794]
[1739427001895,0.015,2713.7,2713.5,2.0]
[1739427001896,3.70003,2713.7,2713.5,2.0]
[1739427002401,0.015,2713.7,2713.5,2.0]
[1739427003104,0.565,2713.6,2713.5,2.0]
[1739427003648,4.25014,2713.6,2713.5,2.0]
[1739427003918,0.565,2713.6,2713.5,2.0]
[1739427004435,0.015,2713.6,2713.5,2.0]
[1739427005850,0.0075,2713.9,2713.5,2.0]
[1739427006336,0.565,2713.9,2713.5,2.0]
[1739427006833,0.565,2713.9,2713.5,5.68527]
[1739427007323,3.68502,2713.7,2713.5,2.0]
[1739427007819,3.68499,2713.8,2713.5,2.0]
[1739427007993,4.25014,2713.6,2713.5,2.0]
[1739427008197,4.25038,2713.5,2712.9,0.8258]
[1739427008393,0.565,2713.2,2713.1,2.0]
[1739427010101,0.61318123,2713.2,2713.1,2.0]
[1739427011433,0.565,2713.0,2712.6,2.7905]
[1739427011624,0.015,2712.8,2712.6,2.0]
[1739427011993,0.04797321,2712.7,2712.6,2.0]
[1739427012208,0.015,2712.8,2712.6,2.0]
[1739427012439,0.04784552,2712.7,2712.6,2.0]
[1739427012636,0.015,2712.9,2712.6,2.0]
[1739427012937,0.04763898,2712.7,2712.5,3.0]
[1739427013097,0.015,2712.9,2712.5,3.0]
[1739427013299,3.70114,2712.9,2712.5,3.0]
[1739427013559,3.70114,2712.9,2712.5,5.0]
[1739427013695,0.015,2712.9,2712.5,5.0]
[1739427013897,0.04759737,2712.6,2712.5,5.0]
[1739427014198,0.04759737,2712.6,2712.5,8.68656]
[1739427014532,0.015,2712.9,2712.5,8.68656]
[1739427015139,0.04595588,2712.8,2712.5,5.0]
[1739427016338,0.015,2712.7,2712.5,5.0]
[1739427016639,0.04582384,2712.6,2712.5,5.0]